bitfinex/quotes_BTCUSD_20240906
["timestamp","ask_amount","ask_price","bid_price","bid_amount"]
[1725649298241,0.186223,53699.0,53691.0,0.3841]
[1725649298242,0.372467,53696.0,53689.0,0.01]
[1725649298456,0.372467,53696.0,53685.0,0.55430836]
[1725649298457,0.372536,53686.0,53685.0,0.012]
[1725649298704,0.558804,53686.0,53685.0,0.002]
[1725649298937,0.558804,53686.0,53678.0,0.3486]
[1725649298938,0.186281,53683.0,53682.0,0.007]
[1725649299171,0.186281,53683.0,53679.0,0.007]
[1725649299172,0.186289,53680.0,53679.0,0.007]
[1725649299394,0.372558,53683.0,53679.0,0.007]
[1725649299635,0.186292,53679.0,53678.0,0.3556]
[1725649299848,0.47266755,53686.0,53682.0,0.007]
[1725649299849,0.372562,53683.0,53682.0,0.007]
[1725649300030,1.031402,53683.0,53682.0,0.012]
[1725649300502,1.031402,53683.0,53682.0,0.04806]
[1725649300711,0.1,53683.0,53682.0,0.04806]
[1725649300933,0.286278,53683.0,53682.0,0.04806]
[1725649301381,0.286278,53683.0,53678.0,0.3486]
[1725649301382,0.186292,53679.0,53678.0,0.007]
[1725649301594,0.1,53683.0,53678.0,0.007]
[1725649301828,0.152,53691.0,53678.0,0.007]
[1725649301829,0.1,53684.0,53683.0,0.193278]
[1725649302050,0.152,53698.0,53683.0,0.193278]
[1725649302051,0.472509,53690.0,53683.0,0.007]
[1725649302302,0.18627,53686.0,53683.0,0.007]
[1725649302560,0.37266755,53693.0,53679.0,0.023]
[1725649302561,0.37266755,53693.0,53687.0,0.007]
[1725649302562,0.186252,53691.0,53687.0,0.007]
[1725649302830,0.186252,53691.0,53682.0,0.187282]
[1725649302831,0.186261,53688.0,53685.0,0.007]
[1725649303121,0.186261,53688.0,53679.0,0.209292]
[1725649303122,0.37251,53690.0,53689.0,0.007]
[1725649303123,0.658762,53690.0,53689.0,0.007]
[1725649303865,0.1,53690.0,53689.0,0.007]
[1725649304098,0.37266755,53699.0,53689.0,0.007]
[1725649304099,0.000813,53700.0,53699.0,0.007]
[1725649304314,0.187032,53700.0,53699.0,0.007]
[1725649304835,0.187032,53700.0,53689.0,0.05995]
[1725649304836,0.931185,53695.0,53694.0,0.007]
[1725649305061,0.931185,53695.0,53686.0,0.3625]
[1725649305062,0.000813,53700.0,53686.0,0.007]
[1725649305063,0.3736,53696.0,53686.0,0.007]
[1725649305330,0.3736,53696.0,53685.0,0.006]
[1725649305331,0.372452,53699.0,53691.0,0.007]
[1725649305575,0.000813,53700.0,53691.0,0.007]
[1725649305576,0.558741,53692.0,53691.0,0.007]
[1725649305810,0.186261,53688.0,53687.0,0.007]
[1725649306045,0.558783,53688.0,53687.0,0.007]
[1725649306315,0.558783,53688.0,53680.0,0.351]
[1725649306316,0.186278,53683.0,53682.0,0.007]
[1725649306595,0.186275,53684.0,53683.0,0.0358]
[1725649306850,0.186275,53684.0,53675.0,0.1842]
[1725649306851,0.186282,53682.0,53681.0,0.007]
[1725649307851,0.1,53688.0,53682.0,0.007]
[1725649308083,0.1,53688.0,53687.0,0.007]
[1725649308610,0.1,53688.0,53687.0,0.017]
[1725649308836,0.1,53688.0,53687.0,0.007]
[1725649309088,0.14719951,53694.0,53687.0,0.007]
[1725649309333,0.525253,53700.0,53697.0,0.007]
[1725649309334,0.000813,53700.0,53697.0,0.007]
[1725649309549,0.000813,53700.0,53699.0,0.007]
[1725649310925,0.187032,53700.0,53699.0,0.007]
[1725649311141,0.100813,53700.0,53699.0,0.007]
[1725649311569,0.100813,53700.0,53699.0,0.015]
[1725649311570,0.659471,53700.0,53699.0,0.015]
[1725649311787,0.287032,53700.0,53699.0,0.015]
[1725649312037,0.000813,53700.0,53699.0,0.193223]
[1725649312265,0.000813,53700.0,53699.0,1.34580974]
[1725649312484,0.000813,53700.0,53699.0,1.35453333]
[1725649312701,0.000813,53700.0,53699.0,1.35080974]
[1725649312949,0.000813,53700.0,53699.0,0.78714074]
[1725649313226,0.000813,53700.0,53699.0,1.35380974]
[1725649313482,0.000813,53700.0,53699.0,1.17836374]
[1725649313687,0.000813,53700.0,53699.0,1.55080974]
[1725649314354,0.000813,53700.0,53699.0,1.17036374]
[1725649314824,0.000813,53700.0,53699.0,1.18436374]
[1725649315046,0.000813,53700.0,53699.0,1.55680974]
[1725649315532,0.000813,53700.0,53699.0,0.61169474]
[1725649315768,0.000813,53700.0,53699.0,0.62569474]
[1725649315982,0.000813,53700.0,53699.0,0.021]
[1725649315983,0.187032,53700.0,53699.0,0.021]
[1725649316200,0.18624,53694.0,53693.0,0.007]
[1725649316431,0.18624,53694.0,53691.0,0.007]
[1725649316432,0.186247,53692.0,53691.0,0.007]
[1725649316737,0.186247,53692.0,53689.0,0.3653]
[1725649316738,0.186223,53699.0,53698.0,0.007]
[1725649316954,0.186228,53698.0,53697.0,0.007]
[1725649317184,0.557681,53698.0,53697.0,0.007]
[1725649317408,0.373255,53700.0,53698.0,0.007]
[1725649317409,0.186223,53699.0,53698.0,0.007]
[1725649317636,0.1,53699.0,53698.0,0.007]
[1725649318059,0.286223,53699.0,53698.0,0.007]
[1725649318301,0.1,53699.0,53698.0,0.007]
[1725649318526,0.372403,53706.0,53698.0,0.007]
[1725649318527,0.002,53714.0,53698.0,0.5509]
[1725649318736,0.09197004,53727.0,53717.0,0.007]
[1725649318737,0.55430836,53727.0,53717.0,0.007]
[1725649318969,0.55430836,53727.0,53716.0,0.007]
[1725649318970,0.18616,53717.0,53716.0,0.007]
[1725649319176,0.186171,53714.0,53713.0,0.007]
[1725649319404,0.558513,53714.0,53713.0,0.007]
[1725649319850,0.372288,53722.0,53717.0,0.007]
[1725649320071,0.558471,53718.0,53717.0,0.007]
[1725649320529,0.186179,53712.0,53710.0,0.007]
[1725649320738,0.372314,53718.0,53713.0,0.007]
[1725649320739,0.186173,53714.0,53713.0,0.007]
[1725649320975,0.372314,53718.0,53713.0,0.007]
[1725649321253,0.372298,53721.0,53717.0,0.007]
[1725649321498,0.11194032,53738.0,53720.0,0.007]
[1725649321499,0.55430836,53730.0,53720.0,0.007]
[1725649321710,0.186141,53723.0,53721.0,0.3743]
[1725649321937,0.00081,53731.0,53713.0,0.372347]
[1725649321938,0.00081,53731.0,53714.0,0.007]
[1725649322143,0.00081,53731.0,53713.0,0.007]
[1725649322144,1.427155,53714.0,53713.0,0.007]
[1725649322360,1.427155,53714.0,53699.0,0.007]
[1725649322361,0.4963,53714.0,53699.0,0.007]
[1725649322580,0.4963,53714.0,53698.0,0.3743]
[1725649322581,0.186202,53705.0,53704.0,0.007]
[1725649322848,0.186202,53705.0,53700.0,0.05778]
[1725649322849,0.186216,53701.0,53700.0,0.05778]
[1725649323070,0.4443,53704.0,53693.0,0.007]
[1725649323297,0.4443,53704.0,53698.0,0.007]
[1725649323298,0.1,53704.0,53698.0,0.007]
[1725649323550,0.1,53704.0,53689.0,0.3743]
[1725649323551,0.3464,53716.0,53706.0,0.007]
[1725649323772,0.3464,53716.0,53691.0,0.55803277]
[1725649323773,0.372366,53711.0,53707.0,0.007]
[1725649323992,0.558576,53708.0,53707.0,0.04365]
[1725649324217,0.186192,53708.0,53707.0,0.04365]
[1725649324437,0.286192,53708.0,53707.0,0.04365]
[1725649324667,0.372338,53715.0,53710.0,0.007]
[1725649324873,0.372338,53715.0,53707.0,0.03665]
[1725649324874,0.372338,53715.0,53711.0,0.007]
[1725649324875,0.18617,53715.0,53711.0,0.007]
[1725649325101,0.186174,53713.0,53712.0,0.007]
[1725649325345,0.372338,53715.0,53712.0,0.007]
[1725649325346,0.186168,53715.0,53712.0,0.007]
[1725649325552,0.4984,53726.0,53707.0,0.222844]
[1725649325553,0.372273,53724.0,53715.0,0.007]
[1725649325773,0.186146,53722.0,53719.0,0.007]
[1725649325991,0.45549424,53731.0,53720.0,0.007]
[1725649325992,0.372269,53725.0,53720.0,0.007]
[1725649326221,0.18614,53723.0,53720.0,0.007]
[1725649326460,0.372253,53727.0,53720.0,0.007]
[1725649326708,0.372252,53727.0,53720.0,0.007]
[1725649326931,0.05578016,53731.0,53720.0,0.007]
[1725649326932,0.00081,53731.0,53728.0,0.007]
[1725649327185,0.186119,53729.0,53728.0,0.007]
[1725649327402,0.186923,53731.0,53728.0,0.007]
[1725649327618,0.186119,53729.0,53728.0,0.007]
[1725649327842,0.00081,53731.0,53730.0,0.007]
[1725649328064,0.00081,53731.0,53730.0,0.3797]
[1725649328293,0.00081,53731.0,53730.0,0.43665472]
[1725649328753,0.00081,53731.0,53730.0,0.007]
[1725649329172,0.00081,53731.0,53724.0,0.3551]
[1725649329173,0.186115,53730.0,53729.0,0.007]
[1725649329637,0.00081,53731.0,53729.0,0.007]
[1725649329638,0.00081,53731.0,53730.0,0.011]
[1725649329873,0.186924,53731.0,53730.0,0.011]
[1725649330108,0.186924,53731.0,53730.0,0.58006819]
[1725649330109,0.00081,53731.0,53730.0,0.58006819]
[1725649330319,0.00081,53731.0,53730.0,1.40418382]
[1725649330777,0.00081,53731.0,53730.0,1.76541482]
[1725649331000,0.00081,53731.0,53730.0,1.57818382]
[1725649331440,0.00081,53731.0,53730.0,1.95241482]
[1725649331658,0.00081,53731.0,53730.0,1.58018382]
[1725649331871,0.00081,53731.0,53730.0,1.95041482]
[1725649332083,0.00081,53731.0,53730.0,1.58018382]
[1725649332296,0.00081,53731.0,53730.0,1.57818382]
[1725649333366,0.00081,53731.0,53730.0,0.62460682]
[1725649333592,0.186098,53735.0,53734.0,0.007]
[1725649333842,0.558294,53735.0,53734.0,0.06946068]
[1725649334303,0.186098,53735.0,53734.0,0.06946068]
[1725649334552,0.558294,53735.0,53734.0,0.06946068]
[1725649334781,0.372178,53738.0,53734.0,0.007]
[1725649335002,0.372178,53738.0,53736.0,0.007]
[1725649335003,0.558275,53737.0,53736.0,0.007]
[1725649335242,0.00081,53744.0,53741.0,0.007]
[1725649335243,0.186074,53742.0,53741.0,0.007]
[1725649335494,0.00081,53744.0,53743.0,0.007]
[1725649335495,0.559014,53744.0,53743.0,0.007]
[1725649335752,0.559014,53744.0,53743.0,0.04495]
[1725649335988,0.558294,53735.0,53734.0,0.007]
[1725649336233,0.558294,53735.0,53727.0,0.3609]
[1725649336234,0.558304,53734.0,53733.0,0.007]
[1725649336447,1.30271,53734.0,53733.0,0.007]
[1725649336675,0.558304,53734.0,53733.0,0.007]
[1725649336918,0.558304,53734.0,53727.0,0.3609]
[1725649336919,0.930542,53732.0,53731.0,0.007]
[1725649337139,0.558325,53732.0,53731.0,0.04379]
[1725649337600,0.186108,53732.0,53731.0,0.04379]
[1725649337848,0.372184,53737.0,53735.0,0.007]
[1725649338128,0.4656,53743.0,53735.0,0.007]
[1725649338129,1.030478,53736.0,53735.0,0.007]
[1725649338346,0.286094,53736.0,53735.0,0.007]
[1725649338591,0.3713,53748.0,53735.0,0.007]
[1725649338592,0.186085,53739.0,53735.0,0.007]
[1725649338864,0.3713,53748.0,53739.0,0.007]
[1725649338865,0.558243,53740.0,53739.0,0.007]
[1725649339109,0.286081,53740.0,53739.0,0.007]
[1725649339351,0.372141,53743.0,53741.0,0.007]
[1725649339352,0.186071,53743.0,53741.0,0.007]
[1725649339593,0.658222,53742.0,53741.0,0.007]
[1725649339823,0.559011,53744.0,53743.0,0.007]
[1725649341256,0.00081,53744.0,53740.0,0.176]
[1725649341513,0.00081,53744.0,53741.0,0.0955586]
[1725649341768,0.00081,53744.0,53743.0,0.558211]
[1725649342038,0.00081,53744.0,53741.0,0.0725586]
[1725649342309,0.00081,53744.0,53742.0,0.723746]
[1725649342535,0.00081,53744.0,53743.0,0.69265726]
[1725649342757,0.01081,53744.0,53743.0,0.71665726]
[1725649343003,0.01081,53744.0,53743.0,0.71565726]
[1725649343206,0.01081,53744.0,53743.0,1.08779826]
[1725649343419,0.01981,53744.0,53743.0,1.08779826]
[1725649343633,0.00081,53744.0,53743.0,1.08779826]
[1725649343873,0.00081,53744.0,53743.0,0.15944626]
[1725649344127,0.559011,53744.0,53743.0,0.13644626]
[1725649344356,0.186877,53744.0,53742.0,0.3516]
[1725649344564,0.00081,53744.0,53742.0,0.3516]
[1725649344785,0.37295,53744.0,53737.0,0.3478]
[1725649345003,0.186088,53738.0,53737.0,0.3478]
[1725649345251,0.00081,53744.0,53735.0,0.1918]
[1725649345461,0.372157,53741.0,53735.0,0.1918]
[1725649345677,0.00081,53744.0,53735.0,0.1918]
[1725649345900,0.186093,53737.0,53735.0,0.1918]
[1725649346142,0.186091,53737.0,53736.0,0.05396]
[1725649346565,0.930457,53737.0,53736.0,0.05396]
[1725649347068,0.558274,53737.0,53736.0,0.05396]
[1725649348178,0.186119,53729.0,53728.0,0.3444]
[1725649348446,0.186119,53729.0,53715.0,0.7968]
[1725649348447,0.37223,53731.0,53721.0,0.3444]
[1725649348694,0.186143,53722.0,53721.0,0.3444]
[1725649348941,0.930715,53722.0,53721.0,0.3444]
[1725649349213,0.930715,53722.0,53718.0,0.1966]
[1725649349214,0.55846,53719.0,53718.0,0.1966]
[1725649349449,0.472217,53733.0,53713.0,0.001624]
[1725649349450,0.186171,53714.0,53713.0,0.001624]
[1725649349698,0.1,53719.0,53713.0,0.1637564]
[1725649349903,0.372245,53728.0,53713.0,0.1637564]
[1725649349904,0.012648,53730.0,53723.0,0.186138]
[1725649350120,0.1,53733.0,53719.0,0.372307]
[1725649350344,0.1,53733.0,53714.0,0.00372245]
[1725649350345,0.18612,53729.0,53720.0,0.372297]
[1725649350566,0.1,53733.0,53715.0,0.05463465]
[1725649350821,0.002,53742.0,53728.0,0.1993]
[1725649350822,0.372154,53742.0,53728.0,0.1993]
[1725649351040,0.372154,53742.0,53729.0,0.06087715]
[1725649351041,0.372177,53738.0,53729.0,0.06087715]
[1725649351261,0.5141,53743.0,53729.0,0.0571552]
[1725649351262,0.18611,53732.0,53729.0,0.0571552]
[1725649351482,0.558346,53730.0,53729.0,0.0571552]
[1725649351708,0.558346,53730.0,53728.0,0.1993]
[1725649351709,0.558357,53729.0,53728.0,0.1993]
[1725649351910,0.372231,53730.0,53723.0,0.1947]
[1725649352144,0.37224,53729.0,53724.0,0.023]
[1725649352607,0.37221,53734.0,53724.0,0.023]
[1725649352845,0.186122,53729.0,53725.0,0.05745]
[1725649353061,0.186122,53728.0,53726.0,0.023]
[1725649353272,0.65430836,53741.0,53726.0,0.023]
[1725649353273,0.186114,53731.0,53726.0,0.023]
[1725649353491,0.1,53741.0,53726.0,0.023]
[1725649353492,0.372207,53734.0,53726.0,0.023]
[1725649353930,0.008,53734.0,53726.0,0.023]
[1725649354152,0.380203,53734.0,53727.0,0.0648416]
[1725649354383,0.380203,53734.0,53726.0,0.023]
[1725649354384,0.558378,53727.0,53726.0,0.023]
[1725649354613,0.186129,53726.0,53725.0,0.05745]
[1725649354838,0.558388,53726.0,53725.0,0.05745]
[1725649355054,0.186129,53726.0,53725.0,0.05745]
[1725649355268,0.008,53734.0,53725.0,0.05745]
[1725649355269,0.37222,53732.0,53725.0,0.243581]
[1725649355495,0.37222,53732.0,53726.0,0.0811555]
[1725649355700,0.65430836,53741.0,53726.0,0.0811555]
[1725649355701,0.372181,53738.0,53727.0,0.37225]
[1725649355937,0.372181,53738.0,53733.0,0.553204]
[1725649355938,0.18609,53738.0,53733.0,0.553204]
[1725649356156,0.186085,53739.0,53734.0,0.186101]
[1725649356403,0.00081,53744.0,53738.0,0.186087]
[1725649356404,0.186071,53743.0,53738.0,0.186087]
[1725649356626,0.00081,53744.0,53741.0,0.186076]
[1725649356834,0.00081,53744.0,53742.0,0.3671]
[1725649357049,0.00081,53744.0,53742.0,0.3901]
[1725649357730,0.18607,53743.0,53742.0,0.3901]
[1725649357949,0.558211,53743.0,53742.0,0.023]
[1725649358133,0.558211,53743.0,53740.0,0.3546]
[1725649358134,0.372141,53743.0,53740.0,0.3546]
[1725649358383,0.372155,53741.0,53740.0,0.3546]
[1725649358600,0.186077,53742.0,53740.0,0.3546]
[1725649358817,0.00081,53744.0,53741.0,0.023]
[1725649359043,0.00081,53744.0,53742.0,0.03876]
[1725649359486,0.00081,53744.0,53742.0,0.03776]
[1725649359487,0.18607,53743.0,53742.0,0.03776]
[1725649359732,0.18607,53743.0,53742.0,0.06076]
[1725649359943,0.00081,53744.0,53742.0,0.06076]
[1725649360381,0.00581,53744.0,53742.0,0.03776]
[1725649360600,0.186878,53744.0,53743.0,0.039236]
[1725649360818,0.00081,53744.0,53743.0,0.039236]
[1725649361094,0.186877,53744.0,53743.0,0.039236]
[1725649361972,0.186877,53744.0,53740.0,0.3546]
[1725649361973,0.186077,53741.0,53740.0,0.3546]
[1725649362857,0.558232,53741.0,53740.0,0.3546]
[1725649363073,0.186077,53741.0,53740.0,0.3546]
[1725649363295,0.30304194,53742.0,53740.0,0.3546]
[1725649363510,0.558232,53741.0,53740.0,0.3546]
[1725649363721,0.186077,53741.0,53740.0,0.3546]
[1725649363932,0.00081,53744.0,53740.0,0.3546]
[1725649364169,0.00081,53744.0,53741.0,0.209077]
[1725649364409,0.00081,53744.0,53743.0,0.558211]
[1725649364629,0.00081,53744.0,53743.0,0.023]
[1725649364872,0.00081,53744.0,53743.0,0.581211]
[1725649365977,0.00281,53744.0,53743.0,0.581211]
[1725649366424,0.00281,53744.0,53743.0,0.953352]
[1725649366636,0.00281,53744.0,53743.0,1.0896872]
[1725649367906,0.00281,53744.0,53743.0,0.7175462]
[1725649368561,0.00281,53744.0,53743.0,1.6180872]
[1725649368779,0.00281,53744.0,53743.0,1.9902282]
[1725649370104,0.00281,53744.0,53743.0,1.6180872]
[1725649370549,0.00281,53744.0,53743.0,1.9902282]
[1725649370775,0.00281,53744.0,53743.0,1.6180872]
[1725649371781,0.00281,53744.0,53743.0,1.9902282]
[1725649372706,0.00081,53744.0,53743.0,1.9902282]
[1725649372932,0.00081,53744.0,53743.0,2.3723692]
[1725649373150,0.00081,53744.0,53743.0,2.67812159]
[1725649373376,0.00081,53744.0,53743.0,2.73136789]
[1725649373841,0.00081,53744.0,53743.0,2.73036789]
[1725649375172,0.00081,53744.0,53743.0,2.73136789]
[1725649376045,0.00081,53744.0,53743.0,2.73036789]
[1725649376301,0.00081,53749.0,53748.0,2.247677]
[1725649376530,0.00081,53749.0,53748.0,2.98498539]
[1725649376745,0.00081,53754.0,53753.0,0.590108]
[1725649376984,0.00081,53754.0,53753.0,2.56217639]
[1725649377200,0.00081,53754.0,53753.0,3.24340003]
[1725649377424,0.00081,53757.0,53756.0,1.861478]
[1725649377616,0.00081,53757.0,53756.0,3.06106761]
[1725649378126,0.00081,53757.0,53756.0,3.41106761]
[1725649378363,0.00081,53757.0,53756.0,3.44854761]
[1725649379030,0.00081,53757.0,53756.0,3.07649661]
[1725649379246,0.00081,53757.0,53756.0,2.4194132]
[1725649379477,0.00081,53757.0,53756.0,2.0253622]
[1725649379686,0.00081,53757.0,53756.0,2.0373622]
[1725649379903,0.00081,53757.0,53756.0,1.9253622]
[1725649380379,0.00081,53757.0,53756.0,1.9393622]
[1725649380817,0.00081,53757.0,53756.0,1.5673112]
[1725649381036,0.558876,53757.0,53756.0,0.014]
[1725649381262,0.93092,53757.0,53756.0,0.014]
[1725649381479,0.93092,53757.0,53748.0,0.05745]
[1725649381480,0.186025,53756.0,53749.0,0.372094]
[1725649381696,0.372051,53756.0,53750.0,0.0784844]
[1725649381912,0.186037,53753.0,53750.0,0.0784844]
[1725649382138,0.00081,53757.0,53741.0,0.001624]
[1725649382354,0.3441,53746.0,53741.0,0.001624]
[1725649382568,1.302518,53742.0,53741.0,0.001624]
[1725649382792,1.667418,53742.0,53741.0,0.001624]
[1725649383001,1.767418,53742.0,53741.0,0.001624]
[1725649383249,1.95440107,53742.0,53741.0,0.001624]
[1725649383486,2.48794907,53742.0,53741.0,0.001624]
[1725649383972,2.48794907,53742.0,53726.0,0.1583]
[1725649383973,0.558378,53727.0,53726.0,0.1583]
[1725649384480,0.05512088,53736.0,53726.0,0.1583]
[1725649384481,0.372193,53736.0,53726.0,0.1583]
[1725649384671,0.11024177,53743.0,53726.0,0.1583]
[1725649384672,0.42002088,53747.0,53727.0,0.56222169]
[1725649384892,0.186064,53745.0,53733.0,0.372204]
[1725649385123,0.15512088,53750.0,53738.0,0.372174]
[1725649385124,0.1598,53750.0,53738.0,0.372174]
[1725649385351,0.1598,53750.0,53741.0,0.001]
[1725649385352,0.001,53742.0,53741.0,0.001]
[1725649385575,0.372103,53749.0,53732.0,0.002]
[1725649385801,0.1598,53750.0,53739.0,0.186081]
[1725649386032,0.186077,53741.0,53740.0,0.0788257]
[1725649386250,0.186077,53741.0,53740.0,0.023]
[1725649386765,0.372101,53749.0,53740.0,0.023]
[1725649386977,0.001,53750.0,53749.0,0.186049]
[1725649387194,0.001,53750.0,53741.0,0.532675]
[1725649387413,0.186058,53747.0,53742.0,0.2623405]
[1725649387641,0.558211,53743.0,53742.0,0.0532675]
[1725649387894,0.372122,53746.0,53735.0,0.395194]
[1725649388124,0.001,53750.0,53736.0,0.00372111]
[1725649388340,0.001,53750.0,53749.0,0.186049]
[1725649388556,0.001,53750.0,53747.0,0.186056]
[1725649388557,0.002,53750.0,53747.0,0.186056]
[1725649388773,0.002,53750.0,53749.0,0.186049]
[1725649389001,0.372857,53757.0,53748.0,0.098718]
[1725649389002,0.00081,53757.0,53756.0,0.186025]
[1725649389215,0.00081,53757.0,53748.0,0.07943871]
[1725649389216,0.00081,53757.0,53751.0,0.372082]
[1725649389469,0.00081,53757.0,53752.0,0.12565722]
[1725649389893,0.372856,53757.0,53752.0,0.12565722]
[1725649390112,0.00081,53757.0,53753.0,0.186034]
[1725649390336,0.00081,53757.0,53756.0,0.558076]
[1725649390557,0.08272144,53769.0,53756.0,0.558076]
[1725649390558,0.371937,53773.0,53766.0,0.18599]
[1725649390774,0.371937,53773.0,53761.0,0.1947]
[1725649390775,0.5235,53774.0,53761.0,0.1947]
[1725649390995,0.08272144,53780.0,53765.0,0.371988]
[1725649390996,0.3637,53780.0,53765.0,0.371988]
[1725649391207,0.18598,53770.0,53766.0,0.20899]
[1725649391419,0.371936,53773.0,53766.0,0.023]
[1725649391661,0.371924,53775.0,53767.0,0.37569336]
[1725649391849,0.185967,53773.0,53769.0,0.185979]
[1725649392097,0.1598,53781.0,53770.0,0.05616724]
[1725649392098,0.55792,53771.0,53770.0,0.05616724]
[1725649392316,0.01251989,53782.0,53762.0,0.01947]
[1725649392317,0.371904,53778.0,53762.0,0.01947]
[1725649392545,0.3637,53783.0,53763.0,0.02671959]
[1725649392768,0.00081,53785.0,53770.0,0.371953]
[1725649393029,0.00081,53785.0,53771.0,0.023]
[1725649393464,0.00081,53785.0,53784.0,0.185928]
[1725649393681,0.00081,53785.0,53784.0,0.2045208]
[1725649393907,0.00081,53785.0,53784.0,0.5763778]
[1725649394117,0.00081,53785.0,53784.0,0.2045208]
[1725649394330,0.00081,53785.0,53784.0,0.0185928]
[1725649394551,0.00081,53785.0,53784.0,0.0415928]
[1725649394792,0.185939,53781.0,53777.0,0.185952]
[1725649394982,0.00081,53785.0,53773.0,0.1862]
[1725649394983,0.37266,53785.0,53773.0,0.1862]
[1725649395228,0.37266,53785.0,53776.0,0.185955]
[1725649395229,0.185946,53780.0,53776.0,0.185955]
[1725649395452,0.185954,53777.0,53773.0,0.185966]
[1725649395670,0.00081,53785.0,53774.0,0.023]
[1725649395671,0.185937,53782.0,53774.0,0.023]
[1725649395890,0.185943,53780.0,53775.0,0.4114127]
[1725649396109,0.185943,53780.0,53776.0,0.208953]
[1725649396331,0.372662,53785.0,53776.0,0.394912]
[1725649396547,0.371866,53783.0,53776.0,0.023]
[1725649396788,0.371866,53783.0,53776.0,0.208956]
[1725649396789,0.185943,53780.0,53776.0,0.208956]
[1725649397021,0.558004,53763.0,53761.0,0.3479]
[1725649397256,0.1598,53778.0,53743.0,0.01]
[1725649397257,0.185984,53768.0,53760.0,0.55430836]
[1725649397469,0.1,53777.0,53755.0,0.3672]
[1725649397699,0.371933,53774.0,53763.0,0.371998]
[1725649397905,0.371933,53774.0,53754.0,0.372063]
[1725649397906,0.371909,53777.0,53765.0,0.3567]
[1725649398144,0.185964,53774.0,53765.0,0.3567]
[1725649398367,0.1,53779.0,53766.0,0.1989]
[1725649398805,0.185978,53770.0,53766.0,0.1989]
[1725649399523,0.185978,53770.0,53765.0,0.3577]
[1725649399524,0.371955,53770.0,53765.0,0.3577]
[1725649399802,0.002,53774.0,53766.0,0.03948998]
[1725649400014,0.185982,53769.0,53766.0,0.04048998]
[1725649400493,0.185982,53769.0,53766.0,0.03948998]
[1725649400748,0.557962,53767.0,53766.0,0.03948998]
[1725649401000,0.371955,53770.0,53758.0,0.363]
[1725649401001,0.186015,53759.0,53758.0,0.363]
[1725649401498,0.3596,53770.0,53748.0,0.01]
[1725649401499,0.1598,53769.0,53748.0,0.372106]
[1725649401733,0.1598,53769.0,53741.0,0.001624]
[1725649401734,0.186046,53750.0,53749.0,0.0372106]
[1725649401995,0.186046,53750.0,53741.0,0.373774]
[1725649401996,0.558222,53742.0,53741.0,0.001624]
[1725649402207,0.93037,53742.0,53741.0,0.001624]
[1725649402732,1.302518,53742.0,53741.0,0.001624]
[1725649403189,1.402518,53742.0,53741.0,0.001624]
[1725649403690,0.288074,53742.0,53741.0,0.002624]
[1725649403898,1.03237,53742.0,53741.0,0.0214954]
[1725649404137,0.002,53742.0,53741.0,0.002624]
[1725649404813,0.186067,53744.0,53741.0,0.001624]
[1725649405101,0.011,53742.0,53741.0,0.002624]
[1725649405352,0.569222,53742.0,53741.0,0.001624]
[1725649405599,0.197074,53742.0,53741.0,0.001624]
[1725649405830,0.023,53742.0,53741.0,0.0557153]
[1725649406058,0.186074,53742.0,53741.0,0.0547153]
[1725649406296,0.192074,53742.0,53741.0,0.0557153]
[1725649406499,0.192074,53742.0,53741.0,0.001624]
[1725649406500,0.93037,53742.0,53741.0,0.001624]
[1725649407174,0.558222,53742.0,53741.0,0.001624]
[1725649407622,1.920418,53742.0,53741.0,0.001624]
[1725649408051,2.292566,53742.0,53741.0,0.001624]
[1725649408304,1.920418,53742.0,53741.0,0.001624]
[1725649408534,1.920418,53742.0,53726.0,0.1583]
[1725649408535,0.93063,53727.0,53726.0,0.1583]
[1725649408742,1.759682,53727.0,53726.0,0.1583]
[1725649409407,2.131934,53727.0,53726.0,0.1583]
[1725649409637,1.759682,53727.0,53726.0,0.1583]
[1725649410108,1.759682,53727.0,53726.0,0.1593]
[1725649410109,2.145934,53727.0,53726.0,0.1593]
[1725649410336,1.759682,53727.0,53726.0,0.1583]
[1725649410561,2.140934,53727.0,53726.0,0.1593]
[1725649410800,2.14928061,53727.0,53726.0,0.17523]
[1725649411439,1.768682,53727.0,53726.0,0.17523]
[1725649411859,1.411882,53727.0,53726.0,0.17523]
[1725649412039,1.411882,53727.0,53726.0,0.1593]
[1725649412317,1.411882,53727.0,53726.0,0.1583]
[1725649412533,1.402882,53727.0,53726.0,0.1583]
[1725649412787,1.416882,53727.0,53726.0,0.1583]
[1725649412994,1.402882,53727.0,53726.0,0.1583]
[1725649413471,1.416882,53727.0,53726.0,0.1583]
[1725649413925,1.05863,53727.0,53726.0,0.1583]
[1725649414140,0.200126,53727.0,53726.0,0.5017]
[1725649414352,0.572378,53727.0,53726.0,0.5017]
[1725649414778,0.94463,53727.0,53726.0,0.5017]
[1725649414982,0.94463,53727.0,53726.0,0.57181]
[1725649415651,0.95863,53727.0,53726.0,0.57181]
[1725649415875,0.186126,53727.0,53726.0,0.57181]
[1725649416116,0.1,53734.0,53726.0,0.57181]
[1725649416365,0.011,53727.0,53726.0,0.57181]
[1725649416620,0.011,53727.0,53726.0,1.060088]
[1725649416875,0.011,53727.0,53726.0,0.687829]